Cogmind - Beta 9.4 @@@ ROGUE MODE // 2020.01.22 @ 06:24:33 Player: alice_fexa Result: Destroyed by as-18320 with Assembled Heavy Rifle Performance ------------- Evolutions (0) 0 Regions Visited (2) 400 Robots Destroyed (13) 65 Value Destroyed (270) 270 Prototype IDs (0) 0 Alien Tech Used (0) 0 Bonus (0) 0 TOTAL SCORE: 735 Bonus ------- None Cogmind --------- Core Integrity 0/250 Matter 279/300 Energy 71/100 System Corruption 12% Temperature Cool (10) Movement Core (600) Ox11 Location -10/Mines Parts ------- > --- POWER (1) -------- (None) > --- PROPULSION (2) --- (None) > --- UTILITY (2) ------ High-capacity Storage Unit > --- WEAPON (2) ------- Beam Cannon > --- INVENTORY (12) --- Light Ion Engine Light Nuclear Core Improved Treads Improved Treads Improved Treads Improved Treads Improved Sensor Array Assault Rifle Light Assault Rifle Light Cannon Peak State ------------ > --- POWER ------------ Ion Engine > --- PROPULSION ------- Light Treads Wheel > --- UTILITY ---------- High-capacity Storage Unit Targeting Computer > --- WEAPON ----------- Assault Rifle Assault Rifle > --- INVENTORY -------- Light Ion Engine Light Nuclear Core Light Treads Wheel Improved Sensor Array Beam Cannon Assault Rifle Light Assault Rifle [Rating: 8] Favorites ----------- Power Ion Engine Engine Ion Engine Propulsion Light Treads Treads Light Treads Wheel Wheel Utility Targeting Computer Storage High-capacity Storage Unit Processor Targeting Computer Weapon Assault Rifle Energy Gun EM Pulse Gun Energy Cannon Beam Cannon Ballistic Gun Assault Rifle Ballistic Cannon Light Cannon Build | -11 -10 -10 ------- Run | Scr Mat Min Slots Evolved . | . . . Power . | . . . Propulsion . | . . . Utility . | . . . Weapon . | . . . Parts Attached 17 | 6 9 2 Power 2 | 1 1 . Engine 2 | 1 1 . Core . | . . . Reactor . | . . . Propulsion 5 | 2 2 1 Treads 2 | 1 1 . Leg . | . . . Wheel 3 | 1 1 1 Hover . | . . . Flight . | . . . Utility 4 | 1 3 . Device . | . . . Storage 3 | 1 2 . Processor 1 | . 1 . Hackware . | . . . Protection . | . . . Artifact . | . . . Weapon 6 | 2 3 1 Energy Gun 1 | 1 . . Energy Cannon 1 | . . 1 Ballistic Gun 3 | 1 2 . Ballistic Cannon 1 | . 1 . Launcher . | . . . Special Weapon . | . . . Impact Weapon . | . . . Slashing Weapon . | . . . Piercing Weapon . | . . . Special Melee Weapon . | . . . Unidentified Prototypes . | . . . Parts Lost 8 | . 1 7 Power 1 | . . 1 Propulsion 3 | . . 3 Utility 1 | . . 1 Weapon 3 | . 1 2 Highest Loss Streak 7 | . 1 7 Average Slot Usage (%) 97 | . 99 92 Engine 13 | . 14 11 Treads 13 | . 14 12 Wheel 13 | . 14 12 Storage 16 | . 16 14 Processor 11 | . 10 12 Energy Gun 3 | . 4 . Ballistic Gun 17 | . 18 13 Ballistic Cannon 6 | . 4 13 Naked Turns . | . . . Heaviest Build 42 | 12 42 42 Greatest Support 20 | 16 20 10 Greatest Overweight (x) 10 | . 4 10 Average Overweight (x) 2 | . 2 3 Largest Inventory Capacity 12 | 6 12 12 Average Capacity 10 | 5 9 12 Most Carried 12 | 4 12 12 Average Carried 8 | 2 8 11 Final Capacity 12 | 6 12 12 Final Carried 12 | 4 12 10 Class Distribution -------------------- 100% | Mutant Dominant Class ---------------- Mutant | -10/Materials Mutant | -10/Mines Resources | -11 -10 -10 ----------- Run | Scr Mat Min Matter Collected 475 | 260 187 28 Remotely . | . . . Salvage Created 362 | . 258 104 Parts 21 | . 19 2 Haulers Intercepted . | . . . Recyclers Shooed . | . . . Parts Field Recycled . | . . . Retrieved Matter . | . . . Parts Self-Destructed . | . . . Prevented . | . . . Kills | -11 -10 -10 ------- Run | Scr Mat Min Combat Hostiles Destroyed 9 | . 6 3 Guns 7 | . 5 2 Cannons 1 | . . 1 AOE 1 | . 1 . Classes Destroyed 5 | . 4 1 Worker 2 | . 2 . Watcher 2 | . 2 . Swarmer 3 | . 3 . Grunt 5 | . 3 2 Assembled 1 | . . 1 Best Kill Streak 7 | . 7 2 Combat Bots Only 4 | . 4 2 Max Kills in Single Turn 2 | . 2 1 Gunslinging . | . . . Exploded 1 | . 1 . Melee . | . . . Uniques/NPCs Destroyed . | . . . Combat | -11 -10 -10 -------- Run | Scr Mat Min Damage Taken 1096 | . 288 808 Core 252 | . 57 195 Absorbed by Shields . | . . . Core Remaining (%) 100 | 100 . . Volleys Fired 36 | . 26 10 Largest 2 | . 2 2 Hottest 60 | . 60 60 Shots Fired 69 | . 51 18 Gun 56 | . 48 8 Cannon 13 | . 3 10 Launcher . | . . . Special . | . . . Kinetic 49 | . 33 16 Thermal 2 | . . 2 Explosive . | . . . Electromagnetic 18 | . 18 . Robot Hit Streak 7 | . 6 7 Robot Miss Streak 5 | . 5 3 Penetration Max . | . . . Secondary Targets 1 | . 1 . Max Gunslinging Chain 1 | . 1 . Shots Hit Robots 42 | . 30 12 Core Hits 20 | . 13 7 Critical Hits . | . . . Critical Kills . | . . . Critical Parts Destroyed . | . . . Melee Attacks . | . . . Impact . | . . . Slashing . | . . . Piercing . | . . . Sneak Attacks . | . . . Combat Hostiles . | . . . Follow-up Attacks . | . . . Damage Inflicted 722 | . 539 183 Guns 438 | . 359 79 Cannons 102 | . . 102 Explosions 180 | . 180 . Melee . | . . . Ramming 2 | . . 2 Kinetic 368 | . 221 147 Thermal 214 | . 180 34 Explosive . | . . . Electromagnetic 138 | . 138 . Impact . | . . . Slashing . | . . . Piercing . | . . . Highest Corruption 12 | . 3 12 Average Corruption 2 | . 2 3 Corruption Purged . | . . . Effects 6 | . 3 3 Message Errors 2 | . 1 1 Matter Fused 1 | . . 1 Heat Flow Errors 1 | . 1 . Energy Discharges 1 | . 1 . Data Loss (minor) 1 | . . 1 Overload Shots . | . . . Overflow Damage 13 | . 13 . Projectiles . | . . . Explosions 13 | . 13 . Melee . | . . . Knockbacks 1 | . . 1 Impact . | . . . Kinetic 1 | . . 1 Secondary . | . . . Self-Inflicted Damage 1 | . . 1 Shots . | . . . Rammed 1 | . . 1 Targets Rammed 1 | . . 1 Kicked . | . . . Crushed . | . . . Highest Temperature 141 | . 141 20 Average Temperature 33 | . 41 12 Received Heat Transfer 131 | . 75 56 Siege Activations . | . . . Robots Corrupted . | . . . Combat Hostiles . | . . . Parts Fried 1 | . 1 . Impact Corruptions . | . . . Robots Melted . | . . . Combat Hostiles . | . . . Parts Melted . | . . . Heat Transferred 324 | . 250 74 Parts Sabotaged . | . . . Parts Stolen . | . . . Parts Stripped . | . . . Power Chain Reactions 2 | . 2 . Missiles Intercepted . | . . . Alert | -11 -10 -10 ------- Run | Scr Mat Min Peak Influence 212 | . 212 68 Average Influence 88 | . 106 59 Maximum Alert Level 1 | . 1 . Low Security (%) 87 | 100 81 100 Level 1 12 | . 18 . Level 2 . | . . . Level 3 . | . . . Level 4 . | . . . Level 5 . | . . . High Security . | . . . Max Security . | . . . Squads Dispatched 1 | . 1 . Investigation . | . . . Extermination . | . . . Reinforcement 1 | . 1 . Assault . | . . . Garrison . | . . . Intercept . | . . . Construction Impeded . | . . . Haulers Reinforced . | . . . Stealth | -11 -10 -10 --------- Run | Scr Mat Min Distress Signals 2 | . 2 . Communications Jammed . | . . . Distress Signals . | . . . Times Spotted 31 | . 15 16 Peak Tracking Total 19 | . 5 19 Tactical Retreats 3 | . 1 2 Traps | -11 -10 -10 ------- Run | Scr Mat Min Traps Triggered 2 | . 2 . Indirectly . | . . . Trap Hack Attempts . | . . . Triggered . | . . . Disarmed . | . . . Reprogrammed . | . . . Reused . | . . . Traps Extracted . | . . . Installed . | . . . Triggered . | . . . Machines | -11 -10 -10 ---------- Run | Scr Mat Min Machines Disabled 1 | . 1 . Max in Single Turn 1 | . 1 . Machines Sabotaged . | . . . Garrisons Compromised . | . . . Overloaded Fab Kills . | . . . Fab Network Shutdowns . | . . . Hacking | -11 -10 -10 --------- Run | Scr Mat Min Machines Accessed 2 | . 2 . Terminals 2 | . 2 . Fabricators . | . . . Repair Stations . | . . . Recycling Units . | . . . Scanalyzers . | . . . Garrison Access . | . . . Total Hacks 4 | . 4 . Successful 2 | . 2 . Failed 2 | . 2 . Catastrophic 1 | . 1 . Database Lockouts . | . . . Manual 2 | . 2 . Terminals 4 | . 4 . Fabricators . | . . . Repair Stations . | . . . Recycling Units . | . . . Scanalyzers . | . . . Garrison Access . | . . . Terminal Hacks 1 | . 1 . Recall Reinforcements 1 | . 1 . Fabricator Hacks . | . . . Repair Station Hacks . | . . . Recycling Unit Hacks . | . . . Scanalyzer . | . . . Garrison Access Hacks . | . . . Unauthorized Hacks 2 | . 2 . Terminals 1 | . 1 . Botnet 1 | . 1 . Fabricators . | . . . Repair Stations . | . . . Recycling Units . | . . . Scanalyzers . | . . . Garrison Access . | . . . Data Cores Recovered . | . . . Used . | . . . Hacking Detections 2 | . 2 . Full Trace Events . | . . . Feedback Events . | . . . Feedback Blocked . | . . . Robot Schematics Acquired . | . . . Robots Built . | . . . Matter . | . . . Time . | . . . Total Robot Build Rating . | . . . Part Schematics Acquired . | . . . Parts Built . | . . . Matter . | . . . Time . | . . . Total Part Build Rating . | . . . Parts Repaired . | . . . Time . | . . . Parts Recycled . | . . . Recycled Matter . | . . . Retrieved Matter . | . . . Retrieved Components . | . . . Parts Scanalyzed . | . . . Part Schematics Acquired . | . . . Parts Damaged . | . . . Bothacking | -11 -10 -10 ------------ Run | Scr Mat Min Used RIF Installer . | . . . Robots Hacked . | . . . Non-combat . | . . . Combat . | . . . Robot Hacks Applied . | . . . Relay Couplers Released . | . . . Robots Rewired . | . . . Allies Hacked . | . . . Hacks Repelled . | . . . Allies | -11 -10 -10 -------- Run | Scr Mat Min Total Allies 1 | . . 1 Largest Group 1 | . . 1 Highest-Rated Group 31 | . . 31 Highest-Rated Ally 31 | . . 31 Total Orders . | . . . Ally Attacks 10 | . . 10 Total Damage 83 | . . 83 Kills . | . . . Allies Corrupted . | . . . Allies Melted . | . . . Intel | -11 -10 -10 ------- Run | Scr Mat Min Robot Analysis Total . | . . . Derelict Logs Recovered 1 | . . 1 Drone Launches . | . . . Drone Recoveries . | . . . Exploration | -11 -10 -10 ------------- Run | Scr Mat Min Turns Passed 784 | 43 542 199 Spaces Moved 485 | 31 334 120 Core 2 | 1 . 1 Treads 31 | . 31 . Legs . | . . . Wheels 452 | 30 303 119 Hover . | . . . Flight . | . . . Fastest Speed 50 | 50 90 110 Average Speed 119 | 98 120 122 Slowest Speed 550 | 100 200 550 Overloaded Moves . | . . . Propulsion Burnouts . | . . . Robots Hopped . | . . . Cave-ins Triggered . | . . . Exploration Rate (%) 24 | 3 55 15 Regions Visited 2 Branch Regions 1 Pre-discovered Areas . | . . . Known Exits Taken . | . . . Unknown Exits Taken 2 | 1 1 . Scrap Searched 1 | . . 1 Spaces Dug . | . . . Terrain Destroyed 6 | . 6 . Melee . | . . . Projectile . | . . . AOE 6 | . 6 . Actions | -11 -10 -10 --------- Run | Scr Mat Min Total 614 | 40 423 151 Wait 51 | . 35 16 Move 483 | 30 333 120 Hop . | . . . Pick Up 17 | 4 12 1 Fast Attach 10 | 6 4 . Attach 3 | . 1 2 Detach . | . . . Swap 4 | . 4 . Drop 9 | . 8 1 Fire 36 | . 26 10 Melee . | . . . Ram 1 | . . 1 Kick . | . . . Crush . | . . . Escape Stasis . | . . . Rewire . | . . . Trap . | . . . Miscellaneous . | . . . Route ------- -11/Scrapyard -10/Materials (discovered 2 exits: *Mat / [*Min]) -10/Mines (discovered 1 exit: *Mat) History --------- Turn | Location | Event 32 | -11/Scrapyard | Discovered new exit (range 12) 44 | -11/Scrapyard | Entered Materials 287 | -10/Materials | Discovered new exit (range 15) 311 | -10/Materials | Build established: Mutant 570 | -10/Materials | Discovered new exit (range 6) 586 | -10/Materials | Entered Mines 632 | -10/Mines | Identified exit to Materials 677 | -10/Mines | Received a Mining Laser from a helpful Derelict 736 | -10/Mines | Assembled infested the area 771 | -10/Mines | System corruption reached 10% 772 | -10/Mines | Core integrity fell below 50% 776 | -10/Mines | Core integrity fell below 20% 785 | -10/Mines | Destroyed by as-18320 with Assembled Heavy Rifle Last Messages --------------- 00768_ The unstable cave ceiling collapses. 00768_ Lgt. Treads destroyed. 00768_ System corrupted by crushing effect (+4). 00769_ The unstable cave ceiling collapses. 00770_ Assault Rifle destroyed. 00770_ System corrupted by crushing effect (+4). 00771_ Lgt. Cannon destroyed. 00772_ D-53 Grenadier destroyed. 00774_ Imp. Light Armor Plating severed. 00776_ Wheel destroyed. 00776_ as-78472 destroyed. 00776_ as-59551 destroyed. 00776_ as-73022 destroyed. 00776_ as-12723 destroyed. 00776_ as-50278 destroyed. 00776_ as-38288 destroyed. 00777_ System corrupted: Matter fused (-6). 00777_ D-53 Grenadier destroyed. 00778_ The unstable cave ceiling collapses. 00781_ R-06 Scavenger destroyed. Map ----- +----------------------------------------------------+ | | | | | | | | | | | | | | | | | | | | | | | | | ??????????????????????????????? | | ??????????????????????????????? | | ??????????????????????????????? | | ??????????????????????????????? | | ????????####??????????????????? | | ???????# * ???????????????????? | | ?????## % ???????????????????? | | ?????# !????????????????????? | | ?????# #????????????????????? | | ????##< #????????????????????? | | ?#### #####????????????????? | | ?# * #????????????????? | | ?# !a= #????????????????? | | ?# @ #????????????????????? | | ??# %=% ##????????????????????? | | ??# %a #?????????????????????? | | ??# %% ##?????????????????????? | | ??#*=!###?????????????????????? | | ??#a%! #?????????????????????? | | ??#%!! #?????????????????????? | | ??#%=] ###????????????????????? | | ?# ! #????????????????????? | | # # #????????????????????? | | ##????????????????????? | | #????????????????????? | | # # % #????????????????????? | | # # #????????????????????? | | # #????????????????????? | | # ##????????????????????? | | ## ##?????????????????????? | | ?### ###?????????????????????? | | ?# #?????????????????????? | | ?# #?????????????????????? | | ?# %#?????????????????????? | | ?# %#?????????????????????? | | ?# #?????????????????????? | | ?### ####?????????????????????? | | ???# #????????????????????????? | +----------------------------------------------------+ Best States ------------- Heat Dissipation 25 Energy Generation 10 Energy Capacity 250 Matter Stores 300 Matter Capacity 500 Sight Range 16 Terrain Scan Density 10 Evasion (%) 42 Targeting Accuracy 5 Recoil Reduction 1 Item Schematics ----------------- None Robot Schematics ------------------ None Fabricated ------------ Nothing Alien Tech Used ----------------- None Achievements -------------- None Challenges ------------ None Game ------ Seed IntegrationStoragePenetrator Manual? 0 Play Time 00:06:03 Cumulative 654.5 hours Start 2020.01.22 @ 06:19:41 End 2020.01.22 @ 06:24:33 Sessions 1 Manual Loads 0 Difficulty Rogue Special Mode None Game No. 595 Rogue 555 Adventurer 40 Explorer 0 Win Type - Total 52 Types 38/0/12/2/0/0/0 Lore% 88 Gallery% 90 Achievement% 69 Wizard Run 0 Options --------- ASCII 0 Keyboard 0 Movement Numpad Keybinds 0 Fullscreen 0 Font 16/Terminus Map View 76x50 Tactical HUD 1 Map Filters NONE Filters NONE Steam 1 RUN: 7eff507b-0fdc-43b5-a508-6dc00b5184d8